Cogmind - Beta 15 @@@ ROGUE MODE // 2025.05.16 @ 19:07:21 Player: celerysam Result: Destroyed by N4-MN2(R) with Subdweller Shrapnel Launcher Performance ------------- Evolutions (0) 0 Regions Visited (2) 400 Robots Destroyed (16) 80 Value Destroyed (461) 461 Prototype IDs (0) 0 Alien Tech Used (0) 0 Bonus (0) 0 TOTAL SCORE: 941 Bonus ------- None Cogmind --------- Core Integrity 0/250 Matter 279/300 Energy 75/100 System Corruption 0% Temperature Cool (0) Movement Rolling (140) Ox4 Location -10/Subcaves Parts ------- > --- POWER (1) -------- (None) > --- PROPULSION (2) --- Wheel > --- UTILITY (2) ------ High-capacity Storage Unit Structural Scanner > --- WEAPON (2) ------- Beam Cannon > --- INVENTORY (20) --- Ion Engine Subdweller Power Source Light Treads Light Treads Aluminum Leg Aluminum Leg Small Storage Unit Huge Storage Unit Light Armor Plating Assault Rifle Assault Rifle Light Assault Rifle Datajack Mining Laser Peak State ------------ > --- POWER ------------ Light Nuclear Core > --- PROPULSION ------- Compact Wheel Compact Wheel > --- UTILITY ---------- Huge Storage Unit Structural Scanner > --- WEAPON ----------- EM Pulse Gun Assault Rifle > --- INVENTORY -------- Ion Engine Light Treads Light Treads Aluminum Leg Aluminum Leg Small Storage Unit Light Armor Plating Beam Cannon Assault Rifle Light Assault Rifle [Rating: 10] Favorites ----------- Power Light Nuclear Core Engine Light Ion Engine Power Core Light Nuclear Core Propulsion Compact Wheel Leg Aluminum Leg Wheel Compact Wheel Utility Structural Scanner Device Structural Scanner Storage Huge Storage Unit Weapon Assault Rifle Energy Gun EM Pulse Gun Energy Cannon Beam Cannon Ballistic Gun Assault Rifle Launcher Grenade Launcher Special Weapon Mining Laser Build | -11 -10 -10 ------- Run | Yrd Mat Sub Slots Evolved . | . . . Power . | . . . Propulsion . | . . . Utility . | . . . Weapon . | . . . Parts Attached 19 | 7 9 3 Power 2 | 1 1 . Engine 1 | 1 . . Core 1 | . 1 . Reactor . | . . . Propulsion 7 | 2 4 1 Treads . | . . . Leg 4 | 2 2 . Wheel 3 | . 2 1 Hover . | . . . Flight . | . . . Utility 4 | 1 3 . Device 1 | . 1 . Storage 3 | 1 2 . Processor . | . . . Hackware . | . . . Protection . | . . . Artifact . | . . . Weapon 6 | 3 1 2 Energy Gun 1 | 1 . . Energy Cannon 1 | . . 1 Ballistic Gun 2 | 2 . . Ballistic Cannon . | . . . Launcher 1 | . . 1 Special Weapon 1 | . 1 . Impact Weapon . | . . . Slashing Weapon . | . . . Piercing Weapon . | . . . Special Melee Weapon . | . . . Unidentified Prototypes . | . . . Parts Lost 6 | . . 6 Power 1 | . . 1 Propulsion 2 | . . 2 Utility . | . . . Weapon 3 | . . 3 Highest Loss Streak 6 | . . 6 To Critical Strikes . | . . . Average Backups 11 | 4 10 16 Power 1 | . 1 1 Propulsion 4 | 3 4 5 Utility 1 | . 1 3 Weapon 3 | . 3 5 Tool/Special . | . . . Unused Backups 8 | . . 8 Power 2 | . . 2 Propulsion 2 | . . 2 Utility 1 | . . 1 Weapon 2 | . . 2 Tool/Special 1 | . . 1 Average Slot Usage (%) 99 | . 99 98 Engine 2 | . 2 . Core 11 | . 11 13 Leg 8 | . 9 . Wheel 19 | . 18 28 Device 13 | . 13 14 Storage 14 | . 14 14 Energy Gun 13 | . 13 13 Ballistic Gun 13 | . 14 13 Peak Build Rating 10 | 6 10 10 Average Rating 9 | 4 9 9 On Entrance 5 | . 6 10 Naked Turns . | . . . Heaviest Build 90 | 12 90 50 Greatest Support 32 | 20 32 32 Greatest Overweight (x) 4 | . 2 4 Average Overweight (x) 1 | . 1 1 Largest Inventory Capacity 25 | 8 25 20 Average Capacity 18 | 6 18 20 Most Carried 17 | 6 16 17 Average Carried 11 | 4 11 16 Final Capacity 20 | 8 20 20 Final Carried 16 | 6 16 14 Class Distribution -------------------- 100% | Mutant Dominant Class ---------------- Mutant | -10/Materials Mutant | -10/Subcaves Resources | -11 -10 -10 ----------- Run | Yrd Mat Sub Matter Collected 469 | 239 208 22 Remotely . | . . . Salvage Created 650 | . 650 . Parts 34 | . 34 . Haulers Intercepted 1 | . 1 . Recyclers Shooed . | . . . Parts Field Recycled . | . . . Retrieved Matter . | . . . Parts Self-Destructed . | . . . Prevented . | . . . Kills | -11 -10 -10 ------- Run | Yrd Mat Sub Combat Hostiles Destroyed 11 | . 11 . Guns 10 | . 10 . AOE 1 | . 1 . Classes Destroyed 5 | . 5 . Worker 1 | . 1 . Hauler 1 | . 1 . Mechanic 1 | . 1 . Watcher 2 | . 2 . Grunt 11 | . 11 . Best Kill Streak 11 | . 11 . Combat Bots Only 8 | . 8 . Max Kills in Single Turn 2 | . 2 . Gunslinging . | . . . Exploded 1 | . 1 . Melee . | . . . Uniques/NPCs Destroyed . | . . . Combat | -11 -10 -10 -------- Run | Yrd Mat Sub Hostile Shots Fired 64 | . 47 17 Missed 25 | . 19 6 Hits 39 | . 28 11 Projectile 39 | . 28 11 AOE 5 | . . 5 Critical Strikes 1 | . 1 . Damage Taken 808 | . 361 447 Core 250 | . 127 123 Absorbed by Shields . | . . . Core Remaining (%) 100 | 100 . . Volleys Fired 39 | . 35 4 Largest 2 | . 2 2 Hottest 100 | . 100 60 Shots Fired 74 | . 68 6 Gun 70 | . 66 4 Cannon 1 | . . 1 Launcher 1 | . . 1 Special 2 | . 2 . Kinetic 36 | . 33 3 Thermal 3 | . 2 1 Explosive 1 | . . 1 Electromagnetic 34 | . 33 1 Robot Hit Streak 11 | . 11 1 Robot Miss Streak 2 | . 2 1 Penetration Max . | . . . Secondary Targets 3 | . 3 . Max Gunslinging Chain 1 | . 1 . Shots Hit Robots 47 | . 45 2 Core Hits 31 | . 30 1 Critical Kills . | . . . Critical Parts Destroyed . | . . . Critical Strikes 2 | . 2 . Corrupt 2 | . 2 . Melee Attacks . | . . . Impact . | . . . Slashing . | . . . Piercing . | . . . Sneak Attacks . | . . . Combat Hostiles . | . . . Follow-up Attacks . | . . . Damage Inflicted 898 | . 760 138 Guns 676 | . 638 38 Cannons 17 | . . 17 Explosions 205 | . 122 83 Melee . | . . . Ramming . | . . . Kinetic 337 | . 299 38 Thermal 139 | . 122 17 Explosive 83 | . . 83 Electromagnetic 339 | . 339 . Impact . | . . . Slashing . | . . . Piercing . | . . . Highest Corruption . | . . . Average Corruption . | . . . Corruption Purged . | . . . Corruption Blocked . | . . . Overload Shots . | . . . Overflow Damage . | . . . Projectiles . | . . . Explosions . | . . . Melee . | . . . Knockbacks . | . . . Impact . | . . . Kinetic . | . . . Secondary . | . . . Self-Inflicted Damage . | . . . Shots . | . . . Rammed . | . . . Targets Rammed . | . . . Kicked . | . . . Crushed . | . . . Highest Temperature 144 | . 144 . Average Temperature 43 | . 43 . Received Heat Transfer 270 | . 222 48 Siege Activations . | . . . Martial Activations . | . . . Shielding Activations . | . . . Robots Disrupted . | . . . Combat Hostiles . | . . . Robots Corrupted . | . . . Combat Hostiles . | . . . Parts Fried 1 | . 1 . Impact Corruptions . | . . . Robots Melted . | . . . Combat Hostiles . | . . . Parts Melted 1 | . 1 . Heat Transferred 237 | . 200 37 Parts Sabotaged . | . . . Parts Stolen . | . . . Parts Stripped . | . . . Power Chain Reactions 2 | . 2 . Alert | -11 -10 -10 ------- Run | Yrd Mat Sub Maximum Alert Level 1 | . 1 . Low Security (%) 89 | 100 89 . Level 1 10 | . 10 . Level 2 . | . . . Level 3 . | . . . Level 4 . | . . . Level 5 . | . . . High Security . | . . . Max Security . | . . . Peak Influence 232 | . 232 . Initial . | . . . Average 65 | . 69 . Influence Increases 335 | . 335 . Destroy 0b10 Robot/C 220 | . 220 . Destroy 0b10 Robot/NC 25 | . 25 . Destroy Leader 56 | . 56 . Successful Hack 4 | . 4 . Destroy Structure 15 | . 15 . Lose Combat Pursuer 15 | . 15 . Influence Decreases 335 | . 335 . Time Decay 335 | . 335 . Squads Dispatched 2 | . 2 . Investigation 1 | . 1 . Extermination . | . . . Reinforcement 1 | . 1 . Assault . | . . . Garrison . | . . . Intercept . | . . . Searches Triggered . | . . . Construction Impeded . | . . . Haulers Reinforced . | . . . Active Scanning Responses . | . . . Cargo Convoy Interrupts . | . . . Stealth | -11 -10 -10 --------- Run | Yrd Mat Sub Distress Signals . | . . . Communications Jammed . | . . . Distress Signals . | . . . Times Spotted 18 | . 15 3 Peak Tracking Total 8 | . 8 3 Tactical Retreats 1 | . 1 . Traps | -11 -10 -10 ------- Run | Yrd Mat Sub Traps Triggered 1 | . 1 . Indirectly . | . . . Trap Hack Attempts . | . . . Triggered . | . . . Disarmed . | . . . Reprogrammed . | . . . Reused . | . . . Traps Extracted . | . . . Installed . | . . . Triggered . | . . . Machines | -11 -10 -10 ---------- Run | Yrd Mat Sub Machines Disabled . | . . . Max in Single Turn . | . . . Machines Repaired . | . . . Machines Dismantled . | . . . Machines Sabotaged . | . . . Overloaded Fab Kills . | . . . Hacking | -11 -10 -10 --------- Run | Yrd Mat Sub Machines Accessed 2 | . 2 . Terminals 1 | . 1 . Fabricators . | . . . Repair Stations . | . . . Recycling Units 1 | . 1 . Scanalyzers . | . . . Garrison Access . | . . . Total Hacks 3 | . 3 . Successful 2 | . 2 . Failed 1 | . 1 . Catastrophic . | . . . Database Lockouts . | . . . Manual . | . . . Terminals 2 | . 2 . Fabricators . | . . . Repair Stations . | . . . Recycling Units 1 | . 1 . Scanalyzers . | . . . Garrison Access . | . . . Terminal Hacks 1 | . 1 . Locate Traps 1 | . 1 . Fabricator Hacks . | . . . Repair Station Hacks . | . . . Recycling Unit Hacks 1 | . 1 . Report Inventory 1 | . 1 . Scanalyzer . | . . . Garrison Access Hacks . | . . . Unauthorized Hacks . | . . . Terminals . | . . . Fabricators . | . . . Repair Stations . | . . . Recycling Units . | . . . Scanalyzers . | . . . Garrison Access . | . . . Data Cores Recovered . | . . . Used . | . . . Hacking Detections 1 | . 1 . Full Trace Events . | . . . Feedback Events . | . . . Feedback Blocked . | . . . Robot Schematics Acquired . | . . . Robots Built . | . . . Authchips . | . . . Time . | . . . Total Robot Build Rating . | . . . Part Schematics Acquired . | . . . Parts Built . | . . . Authchips . | . . . Time . | . . . Total Part Build Rating . | . . . Parts Repaired . | . . . Time . | . . . Parts Recycled . | . . . Recycled Matter . | . . . Retrieved Matter . | . . . Retrieved Components . | . . . Parts Scanalyzed . | . . . Part Schematics Acquired . | . . . Parts Damaged . | . . . Bothacking | -11 -10 -10 ------------ Run | Yrd Mat Sub Used RIF Installer . | . . . Robots Hacked . | . . . Non-combat . | . . . Combat . | . . . Robot Hacks Applied . | . . . Relay Couplers Released . | . . . Fabnet Peak Effective % . | . . . Robots Rewired . | . . . Allies Hacked . | . . . Hacks Repelled . | . . . Allies | -11 -10 -10 -------- Run | Yrd Mat Sub Total Allies . | . . . Largest Group . | . . . Highest-Rated Group . | . . . Highest-Rated Ally . | . . . Total Orders . | . . . Ally Attacks . | . . . Total Damage . | . . . Kills . | . . . Allies Corrupted . | . . . Allies Melted . | . . . Intel | -11 -10 -10 ------- Run | Yrd Mat Sub Active Infowar (turns) 1441 | . 1227 214 Structural 1441 | . 1227 214 Robot Analysis Total . | . . . Derelict Logs Recovered . | . . . Drone Launches . | . . . Drone Recoveries . | . . . Exploration | -11 -10 -10 ------------- Run | Yrd Mat Sub Turns Passed 1566 | 82 1270 214 Spaces Moved 1118 | 65 879 174 Core 19 | 19 . . Treads . | . . . Legs 307 | 46 261 . Wheels 792 | . 618 174 Hover . | . . . Flight . | . . . Fastest Speed 50 | 50 100 115 Average Speed 121 | 99 124 115 Slowest Speed 140 | 120 130 140 Overloaded Moves . | . . . Propulsion Burnouts . | . . . Robots Hopped . | . . . Potential Cave-ins . | . . . Cave-ins Triggered . | . . . Exploration Rate (%) 37 | 5 95 12 Regions Visited 2 Branch Regions 1 Pre-discovered Areas 1 | . . 1 Known Exits Taken . | . . . Unknown Exits Taken 2 | 1 1 . Scrap Searched 1 | . . 1 Spaces Dug 1 | . 1 . Terrain Destroyed 22 | . 15 7 Melee . | . . . Projectile 2 | . 2 . AOE 20 | . 13 7 Terrain Rammed . | . . . Walls Destroyed . | . . . Machines Disabled . | . . . Actions | -11 -10 -10 --------- Run | Yrd Mat Sub Total 1248 | 80 986 182 Wait 48 | . 48 . Move 1116 | 64 878 174 Hop . | . . . Pick Up 21 | 9 11 1 Fast Attach 3 | 3 . . Attach 7 | 3 1 3 Detach . | . . . Swap 10 | 1 9 . Drop 4 | . 4 . Fire 39 | . 35 4 Melee . | . . . Ram . | . . . Kick . | . . . Crush . | . . . Escape Stasis . | . . . Rewire . | . . . Trap . | . . . Miscellaneous . | . . . Route ------- -11/Scrapyard -10/Materials (discovered 5 exits: [*Mat x3] / [*Min] / [*Sub]) -10/Subcaves History --------- Turn | Location | Event 13 | -11/Scrapyard | Discovered new exit (range 14) 83 | -11/Scrapyard | Entered Materials 321 | -10/Materials | Discovered new exit (range 16) 324 | -10/Materials | Destroyed 8 combat bots 338 | -10/Materials | Build established: Mutant 399 | -10/Materials | Core integrity fell below 50% 492 | -10/Materials | Discovered new exit (range 15) 648 | -10/Materials | Discovered new exit (range 11) 781 | -10/Materials | Discovered new exit (range 8) 1187 | -10/Materials | Discovered new exit (range 7) 1353 | -10/Materials | Entered Subcaves 1499 | -10/Subcaves | Learned location of Zion (-7) 1499 | -10/Subcaves | Met a Zionite searching for "candidates" 1556 | -10/Subcaves | Ambushed by Subdweller buried in earth 1567 | -10/Subcaves | Core integrity fell below 20% 1567 | -10/Subcaves | Destroyed by N4-MN2(R) with Subdweller Shrapnel Launcher Last Messages --------------- 01452_ Searching scrap... 01452_ Found Sub. Power Source. 01452_ Found 34 Matter. 01453_ Acquired 22 matter. 01455_ Acquired Sub. Power Source. 01478_ 0G-MBL(z): "She is not going to be happy we haven't found any suitable candidates yet." 01499_ 0G-MBL(z): "Hey you! It's really dangerous down here, I feel that you could die at any moment. For your health and safety might I suggest a trip to Zion?" World map updated: -7/Zion. 01552_ EM Pulse Gun destroyed. 01554_ Lgt. Nuclear Core destroyed. 01556_ Grenade Launcher destroyed. 01557_ G2-CI7(R): "NOSTUCKSUB!" 01558_ Assault Rifle destroyed. 01563_ Com. Wheel destroyed. 01563_ 0G-MBL(z) destroyed. 01563_ NV-DS1(z) destroyed. Map ----- +----------------------------------------------------+ | ?????????????????????????????##%##???????????????? | | ????????????????????????????### ##???????????????? | | ???????????????????????????#### ##???????????????? | | ???????????????????????????### ###???????????????? | | ???????????????????????????## ####???????????????? | | ???????????????????????????### ####??????????????? | | ???????????????????????????### ####??????????????? | | ????????????????????????????### ##??????????????? | | ???????????????????????????#### ##??????????????? | | ??????????????????????????#### ####??????????????? | | ??????????????????????????### #####??????????????? | | ??????????????????????????## ####????????????????? | | ??????????????????????????##%## ?????????????????? | | ????????????????????????##### ##??####???????????? | | ???????????????####?????#####%# ######???????????? | | ??????????????#### ?????## ###### ##???????????? | | ??????????????### ? # #% ###???????????? | | ??????????????# % ???## # ####??????????? | | ?????????????? ?????## #### ####??????????? | | ?????????????????##%%????######## # ##??????????? | | ?????????????????## ???######## % ##??????????? | | ?????????????????## ######### ##??????????? | | ?????????????????# ####### ##??????????? | | ?????????????????????## ## ##??????????? | | ?????????????????????### % ##??????????? | | ??????????????????????##;@ = ####??????????? | | ??????????????????????##; ######??????????? | | ???????????????????## # % ###????????????? | | ??????????????????### # ##?????????????? | | ????????????????? ## ##?????????????? | | ????????????????? # ; ##?????????????? | | ?????????????## # ##?????????????? | | ?????????????## R ##?????????????? | | ?????????????## ;###????????????? | | ?????????????## ### # R # ##???????????? | | ?????????????## ### ###R ##???????????? | | ??????????????? ?## #### % ###??????????? | | ??????????????? ??####### % ##??????????? | | ???????????????? ?? ###?### ##??????????? | | ?????????????????? % ??????#### ##??????????? | | ????????????????? ???#### ##??????????? | | ???????????????????## ## % ##??????????? | | ???????????????????### ##??????????? | | ????????????????????#### ### #######??????????? | | ??????????????????????#################??????????? | | ???????????????????????????######????????????????? | | ?????????????????????????????????????????????????? | | ?????????????????????????????????????????????????? | | ?????????????????????????????????????????????????? | | ?????????????????????????????????????????????????? | +----------------------------------------------------+ Best States ------------- Heat Dissipation 25 Energy Generation 14 Energy Capacity 160 Matter Stores 300 Matter Capacity 300 Sight Range 16 Terrain Scan Density 10 Evasion (%) 55 Item Schematics ----------------- None Robot Schematics ------------------ None Fabricated ------------ Nothing Repaired ---------- Nothing Alien Tech Used ----------------- None Achievements -------------- None Challenges ------------ None Game ------ Seed BoltCoreChronowheel Manual? 0 Play Time 00:15:07 Cumulative 253.5 hours Start 2025.05.16 @ 18:53:37 End 2025.05.16 @ 19:07:21 Sessions 1 Manual Loads 0 Difficulty Rogue Special Mode None Game No. 378 Rogue 378 Adventurer 0 Explorer 0 Win Type - Total 1 Types 1/0/0/0/0/0/0/0/0/0 Lore% 60 Gallery% 62 Achievement% 43 Wizard Run 0 Options --------- Layout 1 ASCII 0 Keyboard 0 Movement Mouse Keybinds 0 Fullscreen 2 Font 24/Smallcaps Map View 50x35 Zoom Use 0% Tactical HUD 1 Map Filters NONE Filters NONE Steam 1 RUN: 93bbe07c-3c18-4207-808b-2c469c863862